bitfinex/quotes_SOLUSD_20241031
["timestamp","ask_amount","ask_price","bid_price","bid_amount"]
[1730375706865,10.13119095,175.08,175.04,14.2824]
[1730375708778,10.13119095,175.08,175.04,19.9953]
[1730375708957,10.13119095,175.06,175.04,19.9953]
[1730375709156,10.38217095,175.05,175.0,5.96179554]
[1730375709365,10.13119095,175.04,175.01,19.9984]
[1730375710079,10.13119095,175.03,175.01,19.9984]
[1730375710279,10.13119095,175.03,175.01,14.2845]
[1730375710775,10.13119095,175.02,175.01,14.2845]
[1730375715377,10.13119095,175.04,175.01,14.2845]
[1730375715583,10.13119095,175.05,175.01,14.2845]
[1730375715904,10.13119095,175.06,175.01,14.2845]
[1730375716490,10.13119095,175.05,175.01,19.9984]
[1730375718270,10.13119095,175.08,175.02,10.13119095]
[1730375719462,10.13119095,175.05,175.03,5.7133]
[1730375719661,10.13119095,175.04,175.03,5.7133]
[1730375720591,10.13119095,175.04,175.03,14.2832]
[1730375721787,10.13119095,175.04,175.0,19.9995]
[1730375721969,10.13119095,175.02,175.0,19.9995]
[1730375722378,10.13119095,175.01,175.0,19.9995]
[1730375722592,10.13119095,175.01,175.0,14.2853]
[1730375722974,10.13119095,175.02,175.0,14.2853]
[1730375723497,10.13119095,175.01,175.0,14.2853]
[1730375724399,9.97119095,175.01,175.0,14.2853]
[1730375726373,10.13119095,175.02,175.0,14.2853]
[1730375734512,10.13119095,175.01,175.0,14.2853]
[1730375742787,10.13119095,175.01,174.98,6.57179435]
[1730375743000,10.13119095,175.0,174.98,6.57179435]
[1730375744196,10.13119095,175.0,174.98,20.85909435]
[1730375744491,10.13119095,175.02,174.98,20.85909435]
[1730375749222,10.13119095,175.01,174.98,20.85909435]
[1730375752396,10.13119095,175.0,174.98,20.85909435]
[1730375753800,10.13119095,175.01,174.98,20.85909435]
[1730375765016,10.13119095,175.02,174.98,20.85909435]
[1730375768724,0.12549,175.03,174.98,20.85909435]
[1730375768725,10.13119095,175.03,174.98,20.85909435]
[1730375769051,10.13119095,175.04,174.98,30.9902853]
[1730375770958,10.13119095,175.04,174.99,33.90807495]
[1730375771736,10.13119095,175.04,174.99,23.776884]
[1730375772238,10.13119095,175.03,174.99,23.776884]
[1730375774042,10.13119095,175.03,175.0,5.7142]
[1730375775420,10.13119095,175.03,175.0,19.9999]
[1730375778340,10.13119095,175.03,175.0,20.85680239]
[1730375783329,10.13119095,175.04,175.0,20.85680239]
[1730375783650,10.13119095,175.08,175.03,10.13119095]
[1730375784626,10.13119095,175.07,175.02,33.90807495]
[1730375784829,10.13119095,175.06,175.03,5.7133]
[1730375786043,10.13119095,175.06,175.03,19.9965]
[1730375786727,10.13119095,175.04,175.03,14.2832]
[1730375786930,10.13119095,175.04,175.0,0.85690239]
[1730375787135,10.13119095,175.03,175.0,6.57110239]
[1730375787338,10.13119095,175.02,175.0,6.57110239]
[1730375788156,0.25098,175.06,175.0,15.14260239]
[1730375788157,10.13119095,175.03,175.0,15.14260239]
[1730375789038,10.13119095,175.03,175.0,20.85680239]
[1730375791528,10.13119095,175.04,175.0,20.85680239]
[1730375793661,10.13119095,175.03,175.0,20.85680239]
[1730375794832,10.13119095,175.02,175.0,20.85680239]
[1730375795352,10.13119095,175.03,175.0,20.85680239]
[1730375797958,10.13119095,175.04,175.0,20.85680239]
[1730375799234,10.13119095,175.03,175.0,20.85680239]
[1730375805061,10.13119095,175.04,175.0,20.85680239]
[1730375808845,10.13119095,175.05,175.0,30.98799334]
[1730375809358,10.13119095,175.05,175.01,23.776884]
[1730375809951,10.13119095,175.07,175.02,10.13119095]
[1730375810341,10.13119095,175.08,175.03,10.13119095]
[1730375810972,10.13119095,175.08,175.04,5.7129]
[1730375811668,10.13119095,175.07,175.04,5.7129]
[1730375812166,10.13119095,175.07,175.04,14.2824]
[1730375812366,10.13119095,175.08,175.04,14.2824]
[1730375813268,10.13119095,175.08,175.04,19.9953]
[1730375820651,10.13119095,175.08,175.04,14.2824]
[1730375823584,10.13119095,175.07,175.04,14.2824]
[1730375833687,10.13119095,175.05,175.01,5.7139]
[1730375833977,10.13119095,175.04,175.01,5.7139]
[1730375834889,10.13119095,175.04,175.01,14.2845]
[1730375835756,10.13119095,175.03,175.01,14.2845]
[1730375837093,10.13119095,175.02,175.0,6.57110239]
[1730375837652,10.13119095,175.02,175.0,0.85690239]
[1730375838055,10.13119095,175.01,175.0,0.85690239]
[1730375846986,10.13119095,175.02,175.0,0.85690239]
[1730375849497,10.13119095,175.02,175.0,6.57110239]
[1730375852088,10.13119095,175.01,175.0,0.85690239]
[1730375852407,10.13119095,175.01,175.0,6.57110239]
[1730375856899,10.13119095,175.02,175.0,6.57110239]
[1730375862818,10.13119095,175.03,175.0,6.57110239]
[1730375863110,10.13119095,175.04,175.0,20.85680239]
[1730375864484,10.13119095,175.03,175.0,20.85680239]
[1730375867211,10.13119095,175.02,175.0,20.85680239]
[1730375869294,10.13119095,175.03,175.0,20.85680239]
[1730375869606,10.25668095,175.04,175.0,20.85680239]
[1730375873487,10.13119095,175.04,175.0,20.85680239]
[1730375875720,10.38217095,175.05,175.0,20.85680239]
[1730375876053,5.712,175.07,175.0,20.85680239]
[1730375876054,10.13119095,175.06,175.0,30.98799334]
[1730375876325,10.13119095,175.06,175.01,10.13119095]
[1730375877302,10.13119095,175.06,175.02,5.7136]
[1730375878027,10.13119095,175.06,175.02,19.9976]
[1730375878326,10.13119095,175.03,175.02,14.284]
[1730375880299,10.13119095,175.04,175.02,14.284]
[1730375881810,10.13119095,175.03,175.02,14.284]
[1730375884600,10.13119095,175.04,175.02,14.284]
[1730375885220,10.25668095,175.05,175.02,14.284]
[1730375895817,10.13119095,175.04,175.02,14.284]
[1730375897744,10.25668095,175.05,175.02,14.284]
[1730375899727,10.13119095,175.04,175.02,14.284]
[1730375900324,10.13119095,175.04,174.99,5.7146]
[1730375901530,10.25668095,175.05,174.99,30.91614996]
[1730375901943,10.25668095,175.05,175.01,5.7139]
[1730375902351,10.13119095,175.08,175.02,10.13119095]
[1730375902542,10.13119095,175.08,175.03,10.13119095]
[1730375903131,10.13119095,175.09,175.03,10.13119095]
[1730375903839,52.0392,175.22,175.07,10.13119095]
[1730375903840,10.13119095,175.12,175.07,10.13119095]
[1730375905039,10.13119095,175.12,175.08,5.7116]
[1730375906080,10.13119095,175.12,175.07,10.13119095]
[1730375906858,10.13119095,175.11,175.06,10.13119095]
[1730375907148,10.13119095,175.11,175.07,5.712]
[1730375907829,10.13119095,175.11,175.07,19.992]
[1730375909659,10.13119095,175.09,175.04,14.2821]
[1730375909830,10.13119095,175.09,175.04,24.41329095]
[1730375910849,0.12549,175.1,175.04,30.12619095]
[1730375910850,10.38217095,175.1,175.04,30.12619095]
[1730375911227,10.38217095,175.1,175.05,10.13119095]
[1730375911946,10.38217095,175.1,175.06,5.7123]
[1730375915048,10.13119095,175.09,175.06,5.7123]
[1730375916141,10.13119095,175.09,175.05,5.7126]
[1730375917052,10.13119095,175.09,175.05,19.9942]
[1730375921461,10.38217095,175.1,175.05,19.9942]
[1730375923640,10.38217095,175.1,175.05,10.13119095]
[1730375924970,10.38217095,175.1,175.06,5.7123]
[1730375927968,10.13119095,175.08,175.05,14.2808]
[1730375928473,0.25098,175.08,175.05,14.2808]
[1730375928848,10.38217095,175.08,175.05,14.2808]
[1730375931744,0.25098,175.05,175.0,5.95486115]
[1730375931948,10.13119095,175.04,175.0,11.66896115]
[1730375932172,10.13119095,175.04,175.0,5.7141]
[1730375932351,0.25098,175.05,175.0,5.7141]
[1730375932352,10.13119095,175.03,175.0,5.7141]
[1730375932873,10.13119095,175.03,175.0,19.9998]
[1730375933779,10.13119095,175.04,175.0,19.9998]
[1730375934644,10.13119095,175.04,175.0,30.13099095]
[1730375934847,10.13119095,175.07,175.02,10.13119095]
[1730375937072,10.13119095,175.07,175.03,5.7133]
[1730375937373,10.13119095,175.06,175.03,5.7133]
[1730375938559,10.13119095,175.06,175.03,14.2832]
[1730375938880,10.13119095,175.05,175.03,14.2832]
[1730375939082,10.13119095,175.04,175.0,5.7142]
[1730375939287,10.13119095,175.03,175.0,5.7142]
[1730375939583,10.13119095,175.02,175.0,5.7142]
[1730375940077,10.13119095,175.01,174.99,8.73837944]
[1730375940585,10.13119095,175.02,174.99,8.73837944]
[1730375941982,10.13119095,175.01,174.99,8.73837944]
[1730375946457,5.7136,175.02,174.99,8.73837944]
[1730375946458,10.13119095,175.03,174.99,14.45277944]
[1730375947358,10.13119095,175.03,174.99,6.49825901]
[1730375947563,10.13119095,175.03,174.99,20.78475901]
[1730375948966,10.13119095,175.04,174.99,30.91594996]
[1730375951766,10.13119095,175.03,174.99,20.78475901]
[1730375954485,10.13119095,175.02,174.99,20.78475901]
[1730375956387,10.13119095,175.0,174.99,15.07035901]
[1730375957489,10.13119095,175.0,174.99,0.78385901]
[1730375958880,10.13119095,175.01,174.99,0.78385901]
[1730375968181,10.25668095,175.02,174.99,0.78385901]
[1730375972189,10.13119095,175.01,174.99,0.78385901]
[1730375972393,10.13119095,175.0,174.99,0.78385901]
[1730375972607,10.13119095,175.01,174.99,0.78385901]
[1730375975503,10.13119095,175.06,175.0,10.13119095]
[1730375975811,10.13119095,175.05,175.0,10.13119095]
[1730375976117,10.13119095,175.02,174.99,20.78485901]
[1730375977012,10.13119095,175.01,174.99,15.07035901]
[1730375977913,10.25668095,175.02,174.99,20.78495901]
[1730375979090,10.13119095,175.01,174.99,15.07035901]
[1730375980707,10.13119095,175.0,174.99,0.78385901]
[1730375983589,10.38217095,175.0,174.99,0.78385901]
[1730375990703,10.13119095,175.0,174.97,20.0033]
[1730375990903,10.13119095,174.99,174.97,20.0033]
[1730376002294,10.13119095,175.0,174.97,20.0033]
[1730376002500,10.13119095,175.02,174.97,30.13449095]
[1730376002716,10.13119095,174.99,174.97,14.2881]
[1730376004024,10.13119095,174.99,174.97,20.0033]
[1730376005121,10.13119095,174.98,174.97,20.0033]
[1730376005620,10.13119095,174.98,174.96,5.9570754]
[1730376005820,10.13119095,174.97,174.96,5.9570754]
[1730376006016,10.13119095,174.97,174.95,5.7156]
[1730376006628,10.13119095,174.96,174.93,20.0072]
[1730376006925,10.13119095,174.94,174.93,20.0072]
[1730376007514,10.13119095,174.95,174.93,14.2907]
[1730376008129,10.13119095,174.96,174.93,14.2907]
[1730376009315,14.3832,175.03,174.93,14.2907]
[1730376009316,10.13119095,174.95,174.93,14.2907]
[1730376009523,10.13119095,174.94,174.93,14.2907]
[1730376010836,10.13119095,174.94,174.9,5.7175]
[1730376011334,10.13119095,174.91,174.89,13.33634817]
[1730376011521,10.13119095,174.9,174.89,6.94664817]
[1730376011718,46.2402638,174.96,174.89,5.95867743]
[1730376011719,10.13119095,174.92,174.89,5.95867743]
[1730376011914,10.13119095,174.92,174.89,11.67647743]
[1730376012116,10.13119095,174.94,174.89,21.80766838]
[1730376012323,10.13119095,174.95,174.9,10.13119095]
[1730376012702,10.13119095,174.95,174.91,5.7172]
[1730376013102,10.13119095,174.95,174.91,20.0102]
[1730376013304,10.13119095,174.96,174.91,30.14139095]
[1730376013506,10.13119095,174.95,174.91,20.0102]
[1730376016145,10.13119095,174.97,174.92,10.13119095]
[1730376016936,10.13119095,174.98,174.93,10.13119095]
[1730376018036,10.13119095,174.98,174.94,5.7162]
[1730376018806,10.13119095,174.97,174.94,5.7162]
[1730376019438,10.13119095,174.97,174.94,14.2906]
[1730376019610,10.13119095,174.95,174.9,22.1423]
[1730376019807,10.13119095,174.94,174.91,5.7169]
[1730376020026,10.13119095,174.95,174.91,5.7169]
[1730376020434,0.12549,174.96,174.91,15.84809095]
[1730376020732,10.13119095,174.97,174.91,15.84809095]
[1730376020938,10.13119095,174.97,174.91,30.14079095]
[1730376021115,10.13119095,174.97,174.92,10.13119095]
[1730376021314,10.13119095,174.99,174.93,10.13119095]
[1730376022309,10.13119095,174.99,174.94,5.7162]
[1730376022925,10.13119095,175.0,174.95,10.13119095]
[1730376023946,10.13119095,174.99,174.94,30.13799095]
[1730376024855,10.13119095,174.99,174.94,30.93840332]
[1730376025647,10.13119095,174.98,174.94,20.80721237]
[1730376026524,10.13119095,174.99,174.94,30.93840332]
[1730376028446,5.7143,175.0,174.94,20.80721237]
[1730376028447,10.13119095,174.98,174.94,20.80721237]
[1730376028940,10.13119095,174.98,174.94,15.09101237]
[1730376029139,10.13119095,174.96,174.94,0.80041237]
[1730376030335,5.7151,174.98,174.94,0.80041237]
[1730376030541,10.25668095,174.97,174.94,0.80041237]
[1730376031551,10.25668095,174.99,174.94,16.64780332]
[1730376031851,10.25668095,174.98,174.94,20.80721237]
[1730376032041,10.13119095,174.97,174.94,15.09101237]
[1730376032357,10.13119095,174.97,174.94,20.80721237]
[1730376033152,10.25668095,174.98,174.94,20.80721237]
[1730376033855,10.13119095,174.99,174.94,30.93840332]
[1730376034232,10.13119095,174.98,174.94,20.80721237]
[1730376039957,0.25098,174.98,174.94,20.80721237]
[1730376040559,10.13119095,175.0,174.95,10.13119095]
[1730376040765,10.13119095,175.02,174.96,10.13119095]
[1730376040964,10.13119095,175.03,174.97,10.13119095]
[1730376041166,0.12549,175.02,174.97,10.13119095]
[1730376041374,10.25668095,175.02,174.97,10.13119095]
[1730376041875,10.25668095,175.02,174.98,5.7149]
[1730376042076,0.12549,175.01,174.98,5.7149]
[1730376044085,0.12549,175.01,174.96,10.13119095]
[1730376044791,10.38217095,175.02,174.97,10.13119095]
[1730376044959,10.38217095,175.02,174.97,5.7152]
[1730376045161,10.13119095,175.01,174.97,5.7152]
[1730376045465,10.13119095,175.01,174.97,20.0033]
[1730376047687,10.13119095,174.98,174.97,14.2881]
[1730376048770,10.13119095,175.02,174.97,10.13119095]
[1730376048961,10.13119095,175.02,174.96,25.97279095]
[1730376049163,0.12549,175.01,174.96,25.97279095]
[1730376049392,10.25668095,175.01,174.96,15.8416]
[1730376049678,10.13119095,174.99,174.95,20.0056]
[1730376050768,10.13119095,174.98,174.95,20.0056]
[1730376050966,10.13119095,174.99,174.95,20.0056]
[1730376053565,0.12549,174.99,174.95,30.13679095]
[1730376054073,0.12549,175.0,174.95,30.13679095]
[1730376054074,0.25098,175.0,174.95,30.13679095]
[1730376056226,10.38217095,175.0,174.95,30.13679095]
[1730376061003,10.13119095,174.99,174.95,20.0056]
[1730376061220,10.38217095,175.0,174.95,30.13679095]
[1730376063899,10.38217095,175.0,174.95,20.0056]
[1730376063900,10.13119095,174.99,174.95,20.0056]
[1730376064080,10.13119095,174.98,174.95,20.0056]
[1730376065183,10.13119095,174.99,174.95,20.0056]
[1730376066403,16.09647095,175.0,174.95,30.13679095]
[1730376071310,5.96528,175.0,174.95,30.13679095]
[1730376071518,5.96528,175.0,174.96,10.13119095]
[1730376071687,0.12549,175.02,174.98,10.13119095]
[1730376072087,0.25098,175.02,174.98,10.13119095]
[1730376072692,0.25098,175.02,174.98,15.84589095]
[1730376073307,0.12549,174.99,174.96,14.2889]
[1730376073507,0.25098,174.99,174.96,20.0042]
[1730376074512,0.25098,174.99,174.96,14.2889]
[1730376075215,10.25668095,174.99,174.96,14.2889]
[1730376076513,0.25098,174.99,174.96,14.2889]
[1730376077097,0.25098,174.99,174.96,20.0044]
[1730376080199,0.25098,174.99,174.96,14.2889]
[1730376081399,0.25098,174.99,174.96,20.0044]
[1730376083526,0.25098,174.98,174.95,5.7159]
[1730376085606,10.13119095,175.02,174.96,10.13119095]
[1730376085828,10.13119095,175.02,174.95,20.0056]
[1730376085829,0.12549,175.02,174.97,10.13119095]
[1730376086025,0.25098,175.02,174.97,10.13119095]
[1730376086326,0.12549,175.02,174.98,10.13119095]
[1730376086626,10.13119095,175.06,175.0,10.13119095]
[1730376087108,0.12549,175.05,175.0,10.13119095]
[1730376087315,10.13119095,175.06,175.01,10.13119095]
[1730376087537,15.84319095,175.07,175.02,10.13119095]
[1730376087699,15.84319095,175.07,175.02,15.84459095]
[1730376088208,10.13119095,175.07,175.02,30.12859095]
[1730376088407,10.13119095,175.08,175.02,30.12859095]
[1730376088630,0.12549,175.07,175.02,30.12859095]
[1730376089128,0.25098,175.07,175.02,30.12859095]
[1730376092321,5.96298,175.07,175.02,30.12859095]
[1730376092716,16.09417095,175.07,175.02,30.12859095]
[1730376093807,10.13119095,175.07,175.02,30.12859095]
[1730376094032,0.12549,175.08,175.04,10.13119095]
[1730376094228,0.12549,175.09,175.05,10.13119095]
[1730376094928,10.38217095,175.09,175.04,15.84389095]
[1730376096130,0.25098,175.09,175.05,10.13119095]
[1730376096435,10.38217095,175.09,175.04,30.12629095]
[1730376096815,10.13119095,175.08,175.04,19.9951]
[1730376097131,10.13119095,175.08,175.04,14.2824]
[1730376098115,10.13119095,175.08,175.04,19.9953]
[1730376101540,0.12549,175.08,175.04,19.9953]
[1730376103036,0.12549,175.09,175.05,10.13119095]
[1730376103237,10.13119095,175.11,175.06,10.13119095]
[1730376103422,10.25668095,175.1,175.05,10.13119095]
[1730376104329,10.25668095,175.1,175.04,30.12649095]
[1730376107739,10.13119095,175.09,175.04,30.12649095]
[1730376109238,10.38217095,175.1,175.04,30.12649095]
[1730376109447,16.09317095,175.1,175.04,30.12649095]
[1730376112627,10.13119095,175.08,175.04,19.9953]
[1730376113143,15.84259095,175.09,175.04,19.9953]
[1730376113537,15.84259095,175.09,175.04,30.12649095]
[1730376114721,5.7114,175.09,175.05,10.13119095]
[1730376116229,5.7114,175.09,175.05,15.84369095]
[1730376116427,0.25098,175.1,175.06,10.13119095]
[1730376116956,10.13119095,175.13,175.07,10.13119095]
[1730376117322,10.13119095,175.11,175.06,10.13119095]
[1730376117845,10.13119095,175.12,175.07,10.13119095]
[1730376118057,0.12549,175.12,175.07,10.13119095]
[1730376118224,0.12549,175.12,175.08,5.7116]
[1730376118751,0.25098,175.12,175.08,5.7116]
[1730376120119,5.96128,175.12,175.08,5.7116]
[1730376121322,16.09247095,175.12,175.08,5.7116]
[1730376122739,5.96128,175.12,175.08,5.7116]
[1730376123136,16.09247095,175.12,175.08,5.7116]
[1730376123518,5.83579,175.12,175.08,5.7116]
[1730376123726,10.13119095,175.17,175.11,10.13119095]
[1730376123924,10.13119095,175.18,175.13,10.13119095]
[1730376124243,16.523,175.21,175.13,10.13119095]
[1730376124244,15.83919095,175.19,175.13,10.13119095]
[1730376124442,15.83899095,175.2,175.14,10.13119095]
[1730376124628,15.83869095,175.21,175.16,10.13119095]
[1730376125222,15.83869095,175.21,175.13,6.5932]
[1730376125223,10.13119095,175.2,175.15,10.13119095]
[1730376126028,10.13119095,175.2,175.13,6.5932]
[1730376126029,0.12549,175.2,175.16,10.13119095]
[1730376126750,0.12549,175.2,175.17,10.13119095]
[1730376126751,0.25098,175.2,175.17,10.13119095]
[1730376127552,0.12549,175.21,175.17,5.7086]
[1730376127725,0.12549,175.21,175.18,10.13119095]
[1730376128325,0.25098,175.22,175.18,10.13119095]
[1730376128660,10.13119095,175.24,175.19,10.13119095]
[1730376128850,15.83769095,175.24,175.19,10.13119095]
[1730376129343,15.83769095,175.24,175.19,15.83909095]
[1730376130159,15.83769095,175.24,175.19,10.13119095]
[1730376130338,5.7065,175.24,175.2,10.13119095]
[1730376130732,10.13119095,175.25,175.2,10.13119095]
[1730376131046,15.83739095,175.25,175.2,10.13119095]
[1730376131280,5.7062,175.25,175.21,10.13119095]
[1730376131841,15.83739095,175.25,175.2,10.13119095]
[1730376132153,5.7062,175.25,175.21,10.13119095]
[1730376132355,16.1852,175.28,175.2,5.7077]
[1730376132356,15.83689095,175.27,175.22,10.13119095]
[1730376132536,15.83689095,175.27,175.23,10.13119095]
[1730376132537,0.12549,175.26,175.23,10.13119095]
[1730376133057,0.25098,175.27,175.23,10.13119095]
[1730376133354,16.08757095,175.27,175.22,10.13119095]
[1730376135768,10.13119095,175.29,175.24,10.13119095]
[1730376136260,10.13119095,175.3,175.25,10.13119095]
[1730376136461,15.83529095,175.31,175.26,10.13119095]
[1730376136750,10.13119095,175.3,175.25,10.13119095]
[1730376137624,15.83569095,175.3,175.25,10.13119095]
[1730376138464,0.12549,175.29,175.24,10.13119095]
[1730376138967,10.25668095,175.29,175.24,10.13119095]
[1730376139753,15.96148095,175.29,175.24,10.13119095]
[1730376141061,5.83029,175.29,175.24,10.13119095]
[1730376141238,5.83029,175.29,175.25,10.13119095]
[1730376141638,5.83029,175.29,175.26,10.13119095]
[1730376143243,5.7042,175.31,175.26,10.13119095]
[1730376143763,5.7035,175.33,175.28,10.13119095]
[1730376144063,0.12549,175.35,175.31,10.13119095]
[1730376144437,10.25668095,175.35,175.3,10.13119095]
[1730376144637,5.7032,175.34,175.3,10.13119095]
[1730376145367,0.12549,175.34,175.3,10.13119095]
[1730376146351,5.7029,175.35,175.32,10.13119095]
[1730376146644,5.7029,175.35,175.29,0.8164972]
[1730376146645,5.7029,175.35,175.31,10.13119095]
[1730376147052,5.7029,175.35,175.29,0.8164972]
[1730376147053,6.2955989,175.37,175.34,10.13119095]
[1730376147357,10.13119095,175.36,175.31,10.13119095]
[1730376147746,10.13119095,175.35,175.29,10.94768815]
[1730376147945,10.13119095,175.35,175.3,10.13119095]
[1730376148164,15.83419095,175.35,175.3,10.13119095]
[1730376148750,10.13119095,175.34,175.29,10.94768815]
[1730376150164,10.13119095,175.35,175.3,10.13119095]
[1730376150369,0.12549,175.35,175.3,10.13119095]
[1730376150571,0.5931989,175.37,175.34,10.13119095]
[1730376150739,0.5931989,175.37,175.36,10.13119095]
[1730376151450,0.5931989,175.37,175.35,10.13119095]
[1730376151957,0.5931989,175.37,175.36,10.13119095]
[1730376154562,0.5931989,175.37,175.36,33.90807495]
[1730376156059,0.5931989,175.37,175.36,10.13119095]
[1730376156286,0.5931989,175.37,175.34,10.13119095]
[1730376156445,0.5931989,175.37,175.33,10.13119095]
[1730376156647,0.5931989,175.37,175.31,31.97199095]
[1730376156648,10.13119095,175.36,175.31,31.97199095]
[1730376157047,10.13119095,175.35,175.31,6.5089]
[1730376157249,10.13119095,175.35,175.29,10.94768815]
[1730376157678,10.13119095,175.34,175.29,10.94768815]
[1730376157851,10.13119095,175.35,175.3,10.13119095]
[1730376159177,10.13119095,175.34,175.29,10.94768815]
[1730376159345,10.72438985,175.37,175.31,10.13119095]
[1730376159760,10.13119095,175.36,175.31,10.13119095]
[1730376159963,10.13119095,175.35,175.3,10.13119095]
[1730376161556,10.13119095,175.36,175.3,10.13119095]
[1730376163294,10.13119095,175.36,175.31,10.13119095]
[1730376163647,0.5931989,175.37,175.32,10.13119095]
[1730376166867,0.5931989,175.37,175.33,10.13119095]
[1730376167758,0.5931989,175.37,175.32,10.13119095]
[1730376168359,10.72438985,175.37,175.31,10.13119095]
[1730376168813,10.13119095,175.36,175.31,10.13119095]
[1730376169076,10.13119095,175.36,175.3,33.90807495]
[1730376169473,10.13119095,175.36,175.3,10.13119095]
[1730376169679,10.13119095,175.36,175.29,0.8164972]
[1730376169680,10.13119095,175.34,175.29,0.8164972]
[1730376169987,10.13119095,175.33,175.29,0.8164972]
[1730376170381,10.13119095,175.32,175.29,0.8164972]
[1730376171685,10.13119095,175.33,175.29,0.8164972]
[1730376178265,10.13119095,175.32,175.29,0.8164972]
[1730376178589,10.13119095,175.31,175.29,0.8164972]
[1730376179291,10.13119095,175.3,175.29,0.8164972]
[1730376180473,10.13119095,175.31,175.29,0.8164972]
[1730376180672,10.13119095,175.3,175.29,0.8164972]
[1730376180893,10.38217095,175.3,175.29,0.8164972]
[1730376182568,16.08667095,175.3,175.29,0.8164972]
[1730376183818,40.06355495,175.3,175.2,0.98588101]
[1730376183975,10.13119095,175.22,175.16,10.13119095]
[1730376184295,10.13119095,175.22,175.17,16.08820711]
[1730376185270,10.13119095,175.22,175.17,5.95701616]
[1730376185499,10.13119095,175.21,175.17,5.95701616]
[1730376187480,10.13119095,175.2,175.17,5.95701616]
[1730376188503,10.13119095,175.21,175.17,5.95701616]
[1730376191695,10.13119095,175.2,175.17,5.95701616]
[1730376192284,10.13119095,175.19,175.17,5.95701616]
[1730376193396,10.13119095,175.18,175.17,5.95701616]
[1730376195084,10.13119095,175.21,175.17,5.95701616]
[1730376196007,10.13119095,175.22,175.17,16.08820711]
[1730376197079,10.13119095,175.23,175.17,16.08820711]
[1730376197278,10.13119095,175.23,175.18,10.13119095]
[1730376197495,10.13119095,175.24,175.19,10.13119095]
[1730376198009,5.7054,175.28,175.19,10.13119095]
[1730376198010,10.13119095,175.25,175.19,10.13119095]
[1730376198820,10.13119095,175.24,175.19,10.13119095]
[1730376199399,10.13119095,175.25,175.2,10.13119095]
[1730376199608,10.13119095,175.26,175.21,10.13119095]
[1730376200411,10.13119095,175.27,175.22,10.13119095]
[1730376201009,10.13119095,175.28,175.22,10.13119095]
[1730376201184,10.13119095,175.28,175.23,10.13119095]
[1730376201677,10.13119095,175.29,175.23,10.13119095]
[1730376203896,10.13119095,175.29,175.24,10.13119095]
[1730376205687,10.13119095,175.28,175.23,10.13119095]
[1730376207498,10.13119095,175.28,175.22,10.13119095]
[1730376207698,10.13119095,175.28,175.23,10.13119095]
[1730376208215,10.13119095,175.3,175.25,10.13119095]
[1730376208517,10.13119095,175.31,175.26,10.13119095]
[1730376208991,0.12549,175.32,175.27,10.13119095]
[1730376209187,10.25668095,175.32,175.27,10.13119095]
[1730376209399,10.13119095,175.31,175.26,10.13119095]
[1730376209591,10.13119095,175.31,175.25,10.13119095]
[1730376210118,10.13119095,175.31,175.26,10.13119095]
[1730376210300,10.13119095,175.3,175.25,10.13119095]
[1730376210501,10.13119095,175.31,175.25,10.13119095]
[1730376211096,10.13119095,175.32,175.26,10.13119095]
[1730376211506,10.25668095,175.33,175.27,10.13119095]
[1730376211710,10.13119095,175.33,175.28,10.13119095]
[1730376213111,10.13119095,175.34,175.28,10.13119095]
[1730376213611,10.13119095,175.33,175.27,16.73789095]
[1730376216396,10.13119095,175.31,175.27,6.6067]
[1730376216633,10.13119095,175.31,175.25,10.13119095]
[1730376218710,10.13119095,175.3,175.25,10.13119095]
[1730376219025,5.7028,175.35,175.23,6.2583]
[1730376219026,10.13119095,175.29,175.24,10.13119095]
[1730376219198,10.13119095,175.28,175.23,16.38949095]
[1730376219520,10.13119095,175.3,175.24,10.13119095]
[1730376220017,10.13119095,175.3,175.25,10.13119095]
[1730376220610,10.13119095,175.31,175.25,10.13119095]
[1730376220801,10.13119095,175.31,175.26,10.13119095]
[1730376222730,23.902374,175.16,175.09,10.13119095]
[1730376222925,23.902374,175.16,175.0,22.2049]
[1730376222926,10.13119095,175.12,175.04,10.13119095]
[1730376223426,10.25668095,175.14,175.06,10.13119095]
[1730376223598,10.13119095,175.12,175.05,10.13119095]
[1730376223793,10.13119095,175.12,175.04,10.13119095]
[1730376224016,10.13119095,175.12,175.05,10.13119095]
[1730376224916,10.13119095,175.11,175.04,10.13119095]
[1730376225094,10.13119095,175.1,175.05,23.776884]
[1730376225700,10.13119095,175.08,175.04,20.0]
[1730376225902,46.4854438,175.14,175.0,32.33609095]
[1730376225903,10.13119095,175.05,175.0,32.33609095]
[1730376226108,10.13119095,175.05,175.0,22.2049]
[1730376226327,10.13119095,175.08,175.02,10.13119095]
[1730376226624,0.25098,175.12,175.0,22.2049]
[1730376226808,15.8590083,175.07,175.01,15.8590083]
[1730376227324,15.8590083,175.05,175.01,20.0]
[1730376227497,15.8590083,175.05,175.0,22.2049]